[Event "15th Golden Prague Rapid Open"]
[Site "Prague"]
[Date "2019.06.30"]
[Round "5.8"]
[White "Moravek, Jakub"]
[Black "Groh, Jiri"]
[Result "1-0"]
[ECO "B83"]
[WhiteElo "1709"]
[BlackElo "2001"]
[Annotator "NA"]
[PlyCount "121"]
[EventDate "2019.06.30"]
[EventType "swiss"]
[EventCountry "CZE"]
[SourceTitle "playchess.com"]
[Source "ChessBase"]
[SourceQuality "1"]
[TimeControl "720+3"]

1. e4 {[%emt 0:00:00]} c5 {[%emt 0:00:00]} 2. b3 {[%emt 0:00:02]} Nf6 {[%emt 0:00:00]} 3. Nc3 {[%emt 0:00:10]} Nc6 {[%emt 0:00:07]} 4. Bb2 {[%emt 0:00:03]} e6 {[%emt 0:00:05]} 5. Nf3 {[%emt 0:00:04]} d6 {[%emt 0:00:08]} 6. d4 {[%emt 0:00:17]} cxd4 {[%emt 0:00:01]} 7. Nxd4 {[%emt 0:00:02]} Be7 {[%emt 0:00:02]} 8. Be2 {[%emt 0:00:08]} O-O {[%emt 0:00:05]} 9. O-O {[%emt 0:00:03]} Qb6 {[%emt 0:00:05]} 10. Na4 {[%emt 0:01:17]} Qc7 {[%emt 0:00:17]} 11. Nc3 {[%emt 0:00:16]} a6 {[%emt 0:00:15]} 12. Bf3 {[%emt 0:00:11]} Ne5 {[%emt 0:00:10]} 13. Rc1 {[%emt 0:00:40]} b5 {[%emt 0:00:09]} 14. Re1 {[%emt 0:00:49]} Bb7 {[%emt 0:00:09]} 15. Qe2 {[%emt 0:00:31]} Qb6 {[%emt 0:00:46]} 16. Nb1 {[%emt 0:00:21]} Rac8 {[%emt 0:00:11]} 17. c3 {[%emt 0:00:14]} Rc7 {[%emt 0:00:25]} 18. Nd2 {[%emt 0:00:14]} Rfc8 {[%emt 0:00:09]} 19. Rc2 {[%emt 0:00:56]} Ng6 {[%emt 0:00:42]} 20. g3 {[%emt 0:00:43]} Qxd4 {[%emt 0:01:29]} 21. cxd4 {[%emt 0:00:10]} Rxc2 {[%emt 0:00:01]} 22. Rb1 {[%emt 0:01:12]} d5 {[%emt 0:00:36]} 23. e5 {[%emt 0:00:26]} Ne4 {[%emt 0:00:01]} 24. Bxe4 {[%emt 0:00:06]} dxe4 {[%emt 0:00:02]} 25. Qe3 {[%emt 0:00:07]} h6 {[%emt 0:00:11]} 26. Nxe4 {[%emt 0:00:10]} Bf8 {[%emt 0:01:18]} 27. Nc3 {[%emt 0:00:10]} b4 {[%emt 0:00:12]} 28. Ne4 {[%emt 0:00:12]} Ne7 {[%emt 0:00:55]} 29. Nd6 {[%emt 0:00:24]} Nd5 {[%emt 0:00:01]} 30. Qd3 {[%emt 0:00:29]} Bxd6 {[%emt 0:00:02]} 31. exd6 {[%emt 0:00:04]} R2c6 {[%emt 0:00:05]} 32. a3 {[%emt 0:00:18]} Rd8 {[%emt 0:00:05]} 33. axb4 {[%emt 0:00:14]} Nxb4 {[%emt 0:00:06]} 34. Qe3 {[%emt 0:00:17]} Rcxd6 {[%emt 0:00:07]} 35. Rc1 {[%emt 0:00:30]} Nd5 {[%emt 0:00:08]} 36. Qd2 {[%emt 0:00:16]} Nf6 {[%emt 0:00:15]} 37. Rc7 {[%emt 0:00:08]} Bd5 {[%emt 0:00:24]} 38. Qb4 {[%emt 0:00:11]} Be4 {[%emt 0:00:23]} 39. Qc5 {[%emt 0:00:18]} Rd5 {[%emt 0:00:21]} 40. Qe7 {[%emt 0:00:13]} Rf8 {[%emt 0:00:03]} 41. Ba3 {[%emt 0:00:11]} Rxd4 {[%emt 0:00:25]} 42. Qxf8+ {[%emt 0:00:04]} Kh7 {[%emt 0:00:02]} 43. f3 {[%emt 0:00:13]} Bg6 {[%emt 0:00:30]} 44. Rc8 {[%emt 0:00:10]} Bh5 {[%emt 0:00:52]} 45. g4 {[%emt 0:00:19]} Nxg4 {[%emt 0:00:16]} 46. fxg4 {[%emt 0:00:04]} Rxg4+ {[%emt 0:00:01]} 47. Kf2 {[%emt 0:00:02]} Rf4+ {[%emt 0:00:11]} 48. Ke3 {[%emt 0:00:03]} Rf3+ {[%emt 0:00:06]} 49. Kd4 {[%emt 0:00:02]} Rxb3 {[%emt 0:00:05]} 50. Bd6 {[%emt 0:00:11]} Rb1 {[%emt 0:00:11]} 51. Be5 {[%emt 0:00:04]} Rd1+ {[%emt 0:00:18]} 52. Kc5 {[%emt 0:00:03]} Rg1 {[%emt 0:00:05]} 53. Qh8+ {[%emt 0:00:03]} Kg6 {[%emt 0:00:01]} 54. Qxg7+ {[%emt 0:00:02]} Kf5 {[%emt 0:00:02]} 55. Qxg1 {[%emt 0:00:02]} Kxe5 {[%emt 0:00:00]} 56. Qe3+ {[%emt 0:00:03]} Kf6 {[%emt 0:00:01]} 57. Rc7 {[%emt 0:00:04]} Bg6 {[%emt 0:00:07]} 58. Qf4+ {[%emt 0:00:02]} Kg7 {[%emt 0:00:02]} 59. Qe5+ {[%emt 0:00:05]} Kh7 {[%emt 0:00:02]} 60. Qf6 {[%emt 0:00:03]} h5 {[%emt 0:00:42]} 61. Rc8 {[%emt 0:00:03]} 1-0

[Event "15th Golden Prague Rapid Open"]
[Site "Prague"]
[Date "2019.06.30"]
[Round "5.9"]
[White "Vavrinec, Tomas"]
[Black "Soural, Karel"]
[Result "1-0"]
[ECO "A37"]
[WhiteElo "1994"]
[BlackElo "1935"]
[Annotator "NA"]
[PlyCount "92"]
[EventDate "2019.06.30"]
[EventType "swiss"]
[EventCountry "CZE"]
[SourceTitle "playchess.com"]
[Source "ChessBase"]
[SourceQuality "1"]
[TimeControl "720+3"]

1. c4 {[%emt 0:00:00]} c5 {[%emt 0:00:00]} 2. Nc3 {[%emt 0:00:01]} Nc6 {[%emt 0:00:01]} 3. g3 {[%emt 0:00:01]} g6 {[%emt 0:00:01]} 4. Bg2 {[%emt 0:00:02]} Bg7 {[%emt 0:00:01]} 5. Nf3 {[%emt 0:00:01]} e5 {[%emt 0:00:20]} 6. O-O {[%emt 0:00:10]} Nge7 {[%emt 0:00:03]} 7. d3 {[%emt 0:00:01]} O-O {[%emt 0:00:04]} 8. Bg5 {[%emt 0:00:02]} f6 {[%emt 0:00:18]} 9. Bd2 {[%emt 0:00:01]} d5 {[%emt 0:00:13]} 10. cxd5 {[%emt 0:00:11]} Nxd5 {[%emt 0:00:04]} 11. Nxd5 {[%emt 0:01:31]} Qxd5 {[%emt 0:00:03]} 12. Be3 {[%emt 0:00:01]} Bd7 {[%emt 0:01:54]} 13. Ng5 {[%emt 0:01:14]} Qd6 {[%emt 0:00:34]} 14. Qb3+ {[%emt 0:00:02]} Kh8 {[%emt 0:00:07]} 15. Ne4 {[%emt 0:00:07]} Qe6 {[%emt 0:01:11]} 16. Qxe6 {[%emt 0:01:02]} Bxe6 {[%emt 0:00:04]} 17. Nxc5 {[%emt 0:00:03]} Bc8 {[%emt 0:00:28]} 18. Rac1 {[%emt 0:00:16]} Nd4 {[%emt 0:01:15]} 19. Bxd4 {[%emt 0:00:33]} exd4 {[%emt 0:00:03]} 20. Rc4 {[%emt 0:00:31]} Rb8 {[%emt 0:00:24]} 21. Nb3 {[%emt 0:00:16]} Be6 {[%emt 0:00:17]} 22. Rc7 {[%emt 0:00:04]} Bxb3 {[%emt 0:00:32]} 23. axb3 {[%emt 0:00:03]} Rfe8 {[%emt 0:00:19]} 24. Bf3 {[%emt 0:00:12]} Bf8 {[%emt 0:00:29]} 25. Rfc1 {[%emt 0:00:05]} Bd6 {[%emt 0:01:04]} 26. Rd7 {[%emt 0:00:33]} Rbd8 {[%emt 0:01:02]} 27. Rxd8 {[%emt 0:00:14]} Rxd8 {[%emt 0:00:01]} 28. Bxb7 {[%emt 0:00:08]} Rb8 {[%emt 0:00:04]} 29. Bd5 {[%emt 0:00:02]} Kg7 {[%emt 0:00:08]} 30. Rc6 {[%emt 0:00:03]} Rd8 {[%emt 0:00:22]} 31. Bf3 {[%emt 0:00:34]} Kf7 {[%emt 0:00:18]} 32. b4 {[%emt 0:00:07]} Ke7 {[%emt 0:00:21]} 33. Ra6 {[%emt 0:00:08]} Rd7 {[%emt 0:00:14]} 34. b5 {[%emt 0:00:07]} Bc5 {[%emt 0:00:15]} 35. Rc6 {[%emt 0:00:20]} Bb6 {[%emt 0:00:11]} 36. Rc8 {[%emt 0:00:03]} Rc7 {[%emt 0:00:19]} 37. Rh8 {[%emt 0:00:06]} Kd6 {[%emt 0:00:01]} 38. Bc6 {[%emt 0:00:02]} Kc5 {[%emt 0:00:07]} 39. Rf8 {[%emt 0:00:32]} f5 {[%emt 0:00:05]} 40. Be8 {[%emt 0:00:43]} Rc8 {[%emt 0:00:22]} 41. Rg8 {[%emt 0:00:03]} Kb4 {[%emt 0:00:15]} 42. Kg2 {[%emt 0:00:14]} Rc7 {[%emt 0:00:06]} 43. Kf3 {[%emt 0:00:27]} Kb3 {[%emt 0:00:01]} 44. e3 {[%emt 0:00:30]} Kxb2 {[%emt 0:00:11]} 45. e4 {[%emt 0:02:49]} fxe4+ {[%emt 0:00:03]} 46. Kxe4 {[%emt 0:00:03]} Kc2 {[%emt 0:00:03]} 1-0

[Event "15th Golden Prague Rapid Open"]
[Site "Prague"]
[Date "2019.06.30"]
[Round "6.1"]
[White "Ralis, Petr"]
[Black "Jirovsky, Pavel"]
[Result "0-1"]
[ECO "B01"]
[WhiteElo "2207"]
[BlackElo "2322"]
[Annotator "NA"]
[PlyCount "30"]
[EventDate "2019.06.30"]
[EventType "swiss"]
[EventCountry "CZE"]
[SourceTitle "playchess.com"]
[Source "ChessBase"]
[SourceQuality "1"]
[TimeControl "720+3"]

1. e4 {[%emt 0:00:00]} d5 {[%emt 0:00:00]} 2. exd5 {[%emt 0:00:03]} Qxd5 {[%emt 0:00:00]} 3. Nc3 {[%emt 0:00:02]} Qd6 {[%emt 0:00:00]} 4. Nf3 {[%emt 0:00:13]} Nf6 {[%emt 0:00:02]} 5. g3 {[%emt 0:00:08]} c6 {[%emt 0:00:01]} 6. Bg2 {[%emt 0:00:03]} Bf5 {[%emt 0:00:02]} 7. O-O {[%emt 0:00:05]} e6 {[%emt 0:00:00]} 8. d4 {[%emt 0:00:13]} Qc7 {[%emt 0:00:02]} 9. Re1 {[%emt 0:00:21]} h6 {[%emt 0:00:40]} 10. Nh4 {[%emt 0:00:42]} Bh7 {[%emt 0:00:05]} 11. Ne4 {[%emt 0:01:39]} Nxe4 {[%emt 0:01:23]} 12. Bxe4 {[%emt 0:00:01]} Bxe4 {[%emt 0:00:08]} 13. Rxe4 {[%emt 0:00:02]} Nd7 {[%emt 0:00:01]} 14. Bf4 {[%emt 0:01:06]} Bd6 {[%emt 0:00:13]} 15. Nf5 {[%emt 0:00:56]} Bxf4 {[%emt 0:00:38]} 0-1

[Event "15th Golden Prague Rapid Open"]
[Site "Prague"]
[Date "2019.06.30"]
[Round "6.2"]
[White "Rydl, Jiri"]
[Black "Benes, Petr"]
[Result "1-0"]
[ECO "A36"]
[WhiteElo "2422"]
[BlackElo "2103"]
[Annotator "NA"]
[PlyCount "85"]
[EventDate "2019.06.30"]
[EventType "swiss"]
[EventCountry "CZE"]
[SourceTitle "playchess.com"]
[Source "ChessBase"]
[SourceQuality "1"]
[TimeControl "720+3"]

1. c4 {[%emt 0:00:00]} Nf6 {[%emt 0:00:12]} 2. g3 {[%emt 0:00:02]} e5 {[%emt 0:00:26]} 3. Bg2 {[%emt 0:00:02]} c5 {[%emt 0:00:07]} 4. Nc3 {[%emt 0:00:03]} Nc6 {[%emt 0:00:01]} 5. d3 {[%emt 0:00:11]} d6 {[%emt 0:00:03]} 6. Bg5 {[%emt 0:00:03]} h6 {[%emt 0:00:07]} 7. Bxf6 {[%emt 0:00:03]} Qxf6 {[%emt 0:00:01]} 8. e3 {[%emt 0:00:09]} g5 {[%emt 0:00:20]} 9. h3 {[%emt 0:00:19]} Bg7 {[%emt 0:00:01]} 10. Nge2 {[%emt 0:00:05]} O-O {[%emt 0:00:24]} 11. g4 {[%emt 0:11:36]} h5 {[%emt 0:01:14]} 12. Ng3 {[%emt 0:00:00]} h4 {[%emt 0:00:14]} 13. Nge4 {[%emt 0:00:00]} Qd8 {[%emt 0:00:06]} 14. Qd2 {[%emt 0:00:00]} a6 15. a3 {[%emt 0:00:12]} Rb8 {[%emt 0:01:08]} 16. Rb1 {[%emt 0:00:03]} Be6 {[%emt 0:08:24]} 17. b4 {[%emt 0:00:03]} cxb4 {[%emt 0:00:00]} 18. axb4 {[%emt 0:00:00]} Re8 {[%emt 0:00:00]} 19. b5 axb5 20. Rxb5 {[%emt 0:00:00]} Na7 21. Rb2 {[%emt 0:00:12]} Bf8 {[%emt 0:00:00]} 22. O-O {[%emt 0:00:00]} Be7 {[%emt 0:00:00]} 23. Rfb1 {[%emt 0:00:00]} Qd7 24. Rxb7 Rxb7 {[%emt 0:00:00]} 25. Rxb7 Qxb7 26. Nf6+ {[%emt 0:00:00]} Bxf6 {[%emt 0:00:00]} 27. Bxb7 {[%emt 0:00:18]} Rb8 {[%emt 0:00:00]} 28. Bd5 {[%emt 0:00:00]} Nc8 29. Qa2 {[%emt 0:00:06]} Bd8 {[%emt 0:00:00]} 30. c5 {[%emt 0:00:00]} Bxd5 {[%emt 0:00:00]} 31. Qxd5 {[%emt 0:00:00]} Bc7 {[%emt 0:00:00]} 32. Ne4 {[%emt 0:00:09]} Ne7 {[%emt 0:00:07]} 33. Qa2 {[%emt 0:00:03]} dxc5 {[%emt 0:00:07]} 34. Nxg5 {[%emt 0:00:03]} Rf8 {[%emt 0:00:06]} 35. Qa7 {[%emt 0:00:03]} Bd8 36. Qxc5 {[%emt 0:00:00]} Ng6 {[%emt 0:00:40]} 37. Ne4 {[%emt 0:00:06]} Be7 {[%emt 0:00:00]} 38. Qc6 {[%emt 0:00:03]} Kg7 {[%emt 0:00:06]} 39. d4 {[%emt 0:00:00]} exd4 {[%emt 0:00:00]} 40. exd4 {[%emt 0:00:00]} Rb8 {[%emt 0:00:00]} 41. d5 {[%emt 0:00:00]} Nf4 {[%emt 0:00:00]} 42. d6 {[%emt 0:00:00]} Nxh3+ {[%emt 0:00:00]} 43. Kh2 {[%emt 0:00:00]} 1-0

[Event "15th Golden Prague Rapid Open"]
[Site "Prague"]
[Date "2019.06.30"]
[Round "6.3"]
[White "Burdik, Lubomir"]
[Black "Netusil, Miloslav"]
[Result "1/2-1/2"]
[ECO "A51"]
[WhiteElo "2132"]
[BlackElo "2189"]
[Annotator "NA"]
[PlyCount "117"]
[EventDate "2019.06.30"]
[EventType "swiss"]
[EventCountry "CZE"]
[SourceTitle "playchess.com"]
[Source "ChessBase"]
[SourceQuality "1"]
[TimeControl "720+3"]

1. d4 {[%emt 0:00:00]} Nf6 {[%emt 0:00:00]} 2. c4 {[%emt 0:00:01]} e5 {[%emt 0:00:00]} 3. dxe5 {[%emt 0:00:06]} Ne4 {[%emt 0:00:01]} 4. Nd2 {[%emt 0:00:12]} Nc5 {[%emt 0:00:00]} 5. Nb3 {[%emt 0:00:28]} Nxb3 {[%emt 0:00:03]} 6. axb3 {[%emt 0:00:02]} Nc6 {[%emt 0:00:02]} 7. Nf3 {[%emt 0:00:04]} Bb4+ {[%emt 0:00:01]} 8. Bd2 {[%emt 0:00:06]} Bxd2+ {[%emt 0:00:02]} 9. Qxd2 {[%emt 0:00:07]} Qe7 {[%emt 0:00:01]} 10. e3 {[%emt 0:00:18]} Nxe5 {[%emt 0:00:12]} 11. Nxe5 {[%emt 0:00:32]} Qxe5 {[%emt 0:00:02]} 12. Be2 {[%emt 0:00:02]} O-O {[%emt 0:00:14]} 13. O-O {[%emt 0:00:06]} d6 {[%emt 0:00:53]} 14. Bf3 {[%emt 0:00:02]} a6 {[%emt 0:00:15]} 15. Ra5 {[%emt 0:00:19]} Qf6 {[%emt 0:00:18]} 16. Qc3 {[%emt 0:00:49]} Qxc3 {[%emt 0:00:20]} 17. bxc3 {[%emt 0:00:01]} Rb8 {[%emt 0:00:01]} 18. h3 {[%emt 0:00:24]} b6 {[%emt 0:00:18]} 19. Ra3 {[%emt 0:00:26]} Be6 {[%emt 0:00:06]} 20. Rxa6 {[%emt 0:00:52]} b5 {[%emt 0:00:00]} 21. cxb5 {[%emt 0:00:40]} Bxb3 {[%emt 0:00:25]} 22. Bc6 {[%emt 0:00:51]} Bc4 {[%emt 0:00:31]} 23. Rb1 {[%emt 0:00:02]} Rb6 {[%emt 0:01:21]} 24. Ra7 {[%emt 0:00:12]} Rfb8 {[%emt 0:00:41]} 25. Rxc7 {[%emt 0:00:15]} g6 {[%emt 0:00:00]} 26. Ra1 {[%emt 0:01:24]} Bxb5 {[%emt 0:00:18]} 27. Bxb5 {[%emt 0:00:04]} Rxb5 {[%emt 0:00:00]} 28. Raa7 {[%emt 0:00:05]} Rf5 {[%emt 0:00:03]} 29. g4 {[%emt 0:00:53]} Rb1+ {[%emt 0:00:29]} 30. Kg2 {[%emt 0:00:05]} Rf6 {[%emt 0:00:12]} 31. f4 {[%emt 0:00:15]} h6 {[%emt 0:01:09]} 32. h4 {[%emt 0:00:11]} g5 {[%emt 0:00:47]} 33. hxg5 {[%emt 0:00:05]} hxg5 {[%emt 0:00:01]} 34. f5 {[%emt 0:00:03]} Re1 {[%emt 0:01:29]} 35. Kf2 {[%emt 0:00:03]} Rh1 {[%emt 0:00:12]} 36. Rd7 {[%emt 0:01:45]} Rh2+ {[%emt 0:00:22]} 37. Kg3 {[%emt 0:00:05]} Rfh6 {[%emt 0:00:08]} 38. Kf3 {[%emt 0:00:01]} Rf6 {[%emt 0:00:05]} 39. Ra6 {[%emt 0:00:06]} Rh3+ {[%emt 0:00:03]} 40. Ke4 {[%emt 0:00:10]} Rg3 {[%emt 0:00:12]} 41. Rdxd6 {[%emt 0:00:01]} Rxg4+ {[%emt 0:00:09]} 42. Ke5 {[%emt 0:00:02]} Rxd6 {[%emt 0:00:01]} 43. Rxd6 {[%emt 0:00:20]} Rc4 {[%emt 0:00:01]} 44. Rd3 {[%emt 0:00:06]} Kg7 {[%emt 0:00:16]} 45. Kd5 {[%emt 0:00:05]} Rc8 {[%emt 0:00:01]} 46. Rd4 {[%emt 0:00:36]} Rxc3 {[%emt 0:00:06]} 47. Ke4 {[%emt 0:00:03]} Rc8 {[%emt 0:00:12]} 48. Ra4 {[%emt 0:00:03]} Re8+ {[%emt 0:00:03]} 49. Kf3 {[%emt 0:00:02]} Kf6 {[%emt 0:00:01]} 50. e4 {[%emt 0:00:00]} Rh8 {[%emt 0:00:37]} 51. Ra6+ {[%emt 0:00:02]} Kg7 {[%emt 0:00:01]} 52. Kg4 {[%emt 0:00:24]} Rh4+ {[%emt 0:00:55]} 53. Kxg5 {[%emt 0:00:01]} Rxe4 {[%emt 0:00:01]} 54. f6+ {[%emt 0:00:03]} Kh7 {[%emt 0:00:03]} 55. Ra1 {[%emt 0:00:03]} Re5+ {[%emt 0:00:06]} 56. Kf4 {[%emt 0:00:02]} Rb5 {[%emt 0:00:15]} 57. Rg1 {[%emt 0:00:02]} Rb4+ {[%emt 0:00:02]} 58. Kf5 {[%emt 0:00:01]} Rb5+ {[%emt 0:00:01]} 59. Kf4 1/2-1/2

[Event "15th Golden Prague Rapid Open"]
[Site "Prague"]
[Date "2019.06.30"]
[Round "6.4"]
[White "Vavrinec, Tomas"]
[Black "Nedoma, Marek"]
[Result "0-1"]
[ECO "A37"]
[WhiteElo "1994"]
[BlackElo "1984"]
[Annotator "NA"]
[PlyCount "88"]
[EventDate "2019.06.30"]
[EventType "swiss"]
[EventCountry "CZE"]
[SourceTitle "playchess.com"]
[Source "ChessBase"]
[SourceQuality "1"]
[TimeControl "720+3"]

1. c4 {[%emt 0:12:03]} c5 {[%emt 0:12:03]} 2. Nc3 {[%emt 0:00:03]} Nc6 {[%emt 0:00:03]} 3. Nf3 {[%emt 0:00:03]} g6 {[%emt 0:00:03]} 4. g3 {[%emt 0:00:03]} Bg7 {[%emt 0:00:03]} 5. Bg2 e6 {[%emt 0:00:03]} 6. O-O {[%emt 0:00:06]} Nge7 {[%emt 0:00:03]} 7. d4 {[%emt 0:00:03]} cxd4 {[%emt 0:00:03]} 8. Nb5 {[%emt 0:00:03]} O-O {[%emt 0:00:03]} 9. Nbxd4 {[%emt 0:00:03]} d5 {[%emt 0:00:03]} 10. cxd5 {[%emt 0:00:03]} Nxd5 {[%emt 0:00:03]} 11. Nxc6 {[%emt 0:00:03]} bxc6 {[%emt 0:00:03]} 12. Bg5 {[%emt 0:00:03]} Qb6 {[%emt 0:00:03]} 13. Rb1 {[%emt 0:00:03]} h6 {[%emt 0:00:03]} 14. Bd2 {[%emt 0:00:03]} a5 {[%emt 0:00:03]} 15. e4 {[%emt 0:00:03]} Nf6 {[%emt 0:00:03]} 16. Qc2 {[%emt 0:00:03]} Ba6 {[%emt 0:00:03]} 17. Be3 {[%emt 0:00:03]} Qb7 {[%emt 0:00:03]} 18. Rfd1 {[%emt 0:00:03]} Rfd8 {[%emt 0:00:03]} 19. Bc5 {[%emt 0:00:03]} Rac8 {[%emt 0:00:03]} 20. Nd4 {[%emt 0:00:03]} e5 {[%emt 0:00:03]} 21. Nb3 {[%emt 0:00:03]} a4 {[%emt 0:00:03]} 22. Nc1 {[%emt 0:00:03]} Qb5 {[%emt 0:00:03]} 23. Be7 {[%emt 0:00:03]} Rxd1+ {[%emt 0:00:03]} 24. Qxd1 {[%emt 0:00:03]} Qc4 {[%emt 0:00:03]} 25. Bf1 {[%emt 0:00:03]} Qxe4 {[%emt 0:00:03]} 26. Bxa6 {[%emt 0:00:03]} Qxb1 {[%emt 0:00:03]} 27. Bxc8 {[%emt 0:00:03]} Nd5 {[%emt 0:00:03]} 28. Ba3 {[%emt 0:00:03]} e4 {[%emt 0:00:03]} 29. Qe1 {[%emt 0:00:03]} Bd4 {[%emt 0:00:03]} 30. b3 {[%emt 0:00:03]} e3 {[%emt 0:00:03]} 31. f3 {[%emt 0:00:03]} axb3 {[%emt 0:00:03]} 32. axb3 {[%emt 0:00:03]} Qa1 {[%emt 0:00:03]} 33. Qa5 {[%emt 0:00:03]} e2+ {[%emt 0:00:03]} 34. Kg2 {[%emt 0:00:03]} e1=Q {[%emt 0:00:03]} 35. Qxe1 {[%emt 0:00:03]} Qxa3 {[%emt 0:00:03]} 36. Kh3 {[%emt 0:00:03]} Be3 {[%emt 0:00:03]} 37. Nd3 {[%emt 0:00:03]} Qxb3 {[%emt 0:00:03]} 38. Nf4 {[%emt 0:00:03]} Nxf4+ {[%emt 0:00:03]} 39. gxf4 {[%emt 0:00:03]} Qd3 {[%emt 0:00:03]} 40. Bb7 {[%emt 0:00:03]} Qf5+ {[%emt 0:00:03]} 41. Kg2 {[%emt 0:00:03]} Bxf4 {[%emt 0:00:03]} 42. Bxc6 {[%emt 0:00:03]} Qc2+ {[%emt 0:00:03]} 43. Kh3 {[%emt 0:00:03]} Qxc6 {[%emt 0:00:03]} 44. Qe4 {[%emt 0:00:03]} Qxe4 {[%emt 0:00:03]} 0-1

[Event "15th Golden Prague Rapid Open"]
[Site "Prague"]
[Date "2019.06.30"]
[Round "6.5"]
[White "Moravek, Jakub"]
[Black "Kiss, Pal"]
[Result "0-1"]
[ECO "B40"]
[WhiteElo "1709"]
[BlackElo "2278"]
[Annotator "NA"]
[PlyCount "42"]
[EventDate "2019.06.30"]
[EventType "swiss"]
[EventCountry "CZE"]
[SourceTitle "playchess.com"]
[Source "ChessBase"]
[SourceQuality "1"]
[TimeControl "720+3"]

1. e4 {[%emt 0:00:00]} c5 {[%emt 0:00:00]} 2. b3 {[%emt 0:00:02]} e6 {[%emt 0:00:06]} 3. Bb2 {[%emt 0:00:04]} Nc6 {[%emt 0:00:01]} 4. Nf3 {[%emt 0:00:06]} Nf6 {[%emt 0:00:01]} 5. Nc3 {[%emt 0:00:20]} d5 {[%emt 0:00:06]} 6. exd5 {[%emt 0:00:05]} exd5 {[%emt 0:00:02]} 7. d4 {[%emt 0:00:10]} Bg4 {[%emt 0:00:11]} 8. dxc5 {[%emt 0:00:21]} Bxc5 {[%emt 0:00:02]} 9. Bd3 {[%emt 0:00:33]} O-O {[%emt 0:00:30]} 10. O-O {[%emt 0:00:04]} Re8 {[%emt 0:01:44]} 11. Na4 {[%emt 0:00:42]} Bd4 {[%emt 0:01:03]} 12. c3 {[%emt 0:01:05]} Be5 {[%emt 0:00:14]} 13. Re1 {[%emt 0:01:10]} Qd6 {[%emt 0:01:00]} 14. c4 {[%emt 0:00:32]} Bxh2+ {[%emt 0:00:46]} 15. Kf1 {[%emt 0:00:42]} Rxe1+ {[%emt 0:00:53]} 16. Kxe1 {[%emt 0:00:42]} Re8+ {[%emt 0:01:20]} 17. Kf1 {[%emt 0:00:53]} Be5 {[%emt 0:00:14]} 18. Bxe5 {[%emt 0:00:47]} Nxe5 {[%emt 0:00:04]} 19. Be2 {[%emt 0:00:49]} Nxf3 {[%emt 0:00:33]} 20. Bxf3 {[%emt 0:00:11]} Qh2 {[%emt 0:00:30]} 21. g3 {[%emt 0:00:35]} Bh3+ {[%emt 0:00:05]} 0-1

[Event "15th Golden Prague Rapid Open"]
[Site "Prague"]
[Date "2019.06.30"]
[Round "6.7"]
[White "Kolbusovsky, Petr"]
[Black "Rehak, Martin"]
[Result "0-1"]
[ECO "B23"]
[WhiteElo "1675"]
[BlackElo "2071"]
[Annotator "NA"]
[PlyCount "54"]
[EventDate "2019.06.30"]
[EventType "swiss"]
[EventCountry "CZE"]
[SourceTitle "playchess.com"]
[Source "ChessBase"]
[SourceQuality "1"]
[TimeControl "720+3"]

1. e4 {[%emt 0:12:03]} c5 2. Nc3 {[%emt 0:00:03]} Nc6 {[%emt 0:12:06]} 3. f4 {[%emt 0:00:03]} g6 {[%emt 0:00:03]} 4. Nf3 {[%emt 0:00:03]} Bg7 5. Bc4 {[%emt 0:00:03]} e6 {[%emt 0:00:06]} 6. O-O {[%emt 0:00:03]} Nge7 {[%emt 0:00:03]} 7. a3 {[%emt 0:00:03]} d5 {[%emt 0:00:03]} 8. exd5 {[%emt 0:00:03]} exd5 9. Bb5 {[%emt 0:00:03]} O-O {[%emt 0:00:06]} 10. Bxc6 {[%emt 0:00:03]} Nxc6 {[%emt 0:00:03]} 11. d3 {[%emt 0:00:03]} b6 {[%emt 0:00:03]} 12. Ne2 {[%emt 0:00:03]} Bb7 {[%emt 0:00:03]} 13. Ng3 {[%emt 0:00:03]} f5 {[%emt 0:00:03]} 14. c3 {[%emt 0:00:03]} Kh8 {[%emt 0:00:03]} 15. Ng5 {[%emt 0:00:03]} Qd7 {[%emt 0:00:03]} 16. Re1 {[%emt 0:00:03]} Rae8 {[%emt 0:00:03]} 17. Bd2 {[%emt 0:00:03]} Rxe1+ {[%emt 0:00:03]} 18. Qxe1 {[%emt 0:00:03]} Re8 {[%emt 0:00:03]} 19. Qf1 {[%emt 0:00:03]} Ba6 {[%emt 0:00:03]} 20. Re1 {[%emt 0:00:03]} Rxe1 {[%emt 0:00:03]} 21. Bxe1 {[%emt 0:00:03]} c4 {[%emt 0:00:03]} 22. d4 {[%emt 0:00:03]} Nxd4 {[%emt 0:00:03]} 23. cxd4 {[%emt 0:00:03]} Bxd4+ 24. Bf2 {[%emt 0:00:03]} Bxb2 {[%emt 0:00:06]} 25. Qd1 {[%emt 0:00:03]} d4 {[%emt 0:00:03]} 26. Qf3 {[%emt 0:00:03]} d3 {[%emt 0:00:03]} 27. Qa8+ {[%emt 0:00:03]} Kg7 0-1

[Event "15th Golden Prague Rapid Open"]
[Site "Prague"]
[Date "2019.06.30"]
[Round "6.8"]
[White "Ocelak, Jakub"]
[Black "Kalousek, Zdenek"]
[Result "0-1"]
[ECO "B02"]
[WhiteElo "1701"]
[BlackElo "2005"]
[Annotator "NA"]
[PlyCount "84"]
[EventDate "2019.06.30"]
[EventType "swiss"]
[EventCountry "CZE"]
[SourceTitle "playchess.com"]
[Source "ChessBase"]
[SourceQuality "1"]
[TimeControl "720+3"]

1. e4 {[%emt 0:00:00]} Nf6 {[%emt 0:00:00]} 2. e5 {[%emt 0:00:00]} Nd5 {[%emt 0:00:00]} 3. c4 {[%emt 0:00:00]} Nb6 {[%emt 0:00:00]} 4. c5 {[%emt 0:00:00]} Nd5 {[%emt 0:00:01]} 5. Bc4 {[%emt 0:00:01]} e6 {[%emt 0:00:01]} 6. d4 {[%emt 0:00:01]} b6 {[%emt 0:00:00]} 7. Qc2 {[%emt 0:00:32]} Bb7 {[%emt 0:00:33]} 8. Nf3 {[%emt 0:00:04]} bxc5 {[%emt 0:00:33]} 9. dxc5 {[%emt 0:00:03]} Bxc5 {[%emt 0:00:13]} 10. Bxd5 {[%emt 0:00:05]} Bb4+ {[%emt 0:00:01]} 11. Bd2 {[%emt 0:00:07]} Bxd2+ {[%emt 0:00:02]} 12. Nbxd2 {[%emt 0:00:01]} Bxd5 {[%emt 0:00:01]} 13. O-O {[%emt 0:00:06]} O-O {[%emt 0:00:11]} 14. Rac1 {[%emt 0:00:06]} c6 {[%emt 0:00:27]} 15. a3 {[%emt 0:00:15]} f6 {[%emt 0:00:17]} 16. b4 {[%emt 0:00:30]} fxe5 {[%emt 0:00:21]} 17. Kh1 {[%emt 0:00:12]} Qf6 {[%emt 0:00:38]} 18. Ne4 {[%emt 0:00:11]} Qg6 {[%emt 0:00:41]} 19. Ned2 {[%emt 0:00:20]} Qxc2 {[%emt 0:00:15]} 20. Rxc2 {[%emt 0:00:01]} d6 {[%emt 0:00:01]} 21. Ng5 {[%emt 0:00:15]} Na6 {[%emt 0:00:50]} 22. Nge4 {[%emt 0:00:05]} Rad8 {[%emt 0:00:03]} 23. Rd1 {[%emt 0:00:04]} Nc7 {[%emt 0:00:05]} 24. a4 {[%emt 0:00:17]} Ne8 {[%emt 0:00:36]} 25. b5 {[%emt 0:00:19]} cxb5 {[%emt 0:00:12]} 26. axb5 {[%emt 0:00:01]} Rb8 {[%emt 0:00:04]} 27. Rb2 {[%emt 0:00:13]} Rb6 {[%emt 0:00:29]} 28. Ra1 {[%emt 0:00:05]} Nf6 {[%emt 0:00:13]} 29. Nc3 {[%emt 0:00:21]} Rf7 {[%emt 0:00:08]} 30. Nxd5 {[%emt 0:00:17]} exd5 {[%emt 0:00:04]} 31. Ra6 {[%emt 0:00:07]} Rfb7 {[%emt 0:00:02]} 32. Rxb6 {[%emt 0:00:07]} Rxb6 {[%emt 0:00:03]} 33. Ra2 {[%emt 0:00:16]} Rxb5 {[%emt 0:00:10]} 34. Rxa7 {[%emt 0:00:01]} Rb2 {[%emt 0:00:01]} 35. Nf1 {[%emt 0:00:06]} Rxf2 {[%emt 0:00:02]} 36. Kg1 {[%emt 0:00:06]} Ne4 {[%emt 0:00:07]} 37. Ne3 {[%emt 0:00:07]} Re2 {[%emt 0:00:17]} 38. Nf1 {[%emt 0:00:05]} d4 {[%emt 0:00:06]} 39. Ra1 {[%emt 0:00:10]} d3 {[%emt 0:00:08]} 40. Ng3 {[%emt 0:00:02]} Nxg3 {[%emt 0:00:06]} 41. hxg3 {[%emt 0:00:01]} d2 {[%emt 0:00:12]} 42. Kf1 {[%emt 0:00:03]} Re1+ {[%emt 0:00:02]} 0-1